bitfinex/quotes_SOLUSD_20241021
["timestamp","ask_amount","ask_price","bid_price","bid_amount"]
[1729505583916,5.984,167.11,167.1,1.49757641]
[1729505585207,5.984,167.11,167.1,1.49757473]
[1729505586410,14.9557,167.16,167.1,1.49757473]
[1729505586617,5.9837,167.12,167.11,1.49757473]
[1729505590218,5.9837,167.12,167.11,3.89370376]
[1729505593425,5.982,167.17,167.12,29.760284]
[1729505593630,5.982,167.17,167.13,9.87700376]
[1729505593821,5.982,167.17,167.14,3.89370376]
[1729505594130,15.175,167.21,167.15,1.49757473]
[1729505594335,5.9815,167.19,167.16,1.49757473]
[1729505594516,5.9816,167.18,167.17,3.89306258]
[1729505595829,14.9507,167.22,167.17,3.89306258]
[1729505595830,5.9803,167.22,167.17,3.89306258]
[1729505596017,5.9803,167.22,167.18,6.88711702]
[1729505596225,30.2077,167.25,167.19,6.88711702]
[1729505596422,5.9801,167.23,167.2,3.89306258]
[1729505596627,14.9478,167.25,167.21,3.89306258]
[1729505596934,5.98,167.23,167.22,3.89239022]
[1729505597136,5.9792,167.25,167.22,3.89180975]
[1729505597321,5.9787,167.26,167.23,1.4968499]
[1729505597530,5.9787,167.26,167.24,1.49674078]
[1729505597725,5.9787,167.26,167.21,23.776884]
[1729505598023,5.9787,167.26,167.22,3.8914908]
[1729505598229,5.9787,167.26,167.23,1.49672723]
[1729505598434,5.9787,167.26,167.24,1.49672723]
[1729505598620,35.0442,167.29,167.19,14.9529]
[1729505598816,20.1,167.29,167.2,6.88490093]
[1729505599033,5.9799,167.23,167.21,6.88490093]
[1729505599225,5.9799,167.23,167.22,3.89146574]
[1729505600917,5.9799,167.23,167.22,1.49671759]
[1729505601118,5.9799,167.23,167.22,3.89147966]
[1729505601344,5.9799,167.23,167.22,1.49671759]
[1729505607521,5.9815,167.19,167.15,16.57249396]
[1729505607729,5.9815,167.19,167.16,6.88523728]
[1729505608040,5.9815,167.18,167.15,15.9983]
[1729505608229,5.9815,167.18,167.16,6.88579589]
[1729505608424,5.9812,167.19,167.17,3.89206838]
[1729505608626,5.9812,167.19,167.18,1.49694938]
[1729505609925,20.0,167.23,167.18,1.49694938]
[1729505610125,20.0,167.23,167.16,2.99389876]
[1729505610126,5.9805,167.21,167.19,1.49694938]
[1729505610326,5.9805,167.21,167.17,2.39511051]
[1729505610635,5.9805,167.21,167.16,8.97589876]
[1729505610636,5.9805,167.21,167.18,1.49694407]
[1729505610948,5.9805,167.21,167.19,1.49694407]
[1729505611151,5.9805,167.21,167.17,2.39510756]
[1729505611339,5.9805,167.21,167.18,1.49694316]
[1729505611534,5.98,167.23,167.19,1.49694316]
[1729505611731,5.9802,167.22,167.18,2.39507095]
[1729505612074,5.9802,167.22,167.19,1.49691911]
[1729505612225,5.9802,167.22,167.17,5.9817]
[1729505612226,5.9802,167.22,167.18,2.39507132]
[1729505612432,5.9802,167.22,167.19,1.49692004]
[1729505612724,5.9796,167.24,167.2,1.49674355]
[1729505612936,5.9796,167.24,167.21,1.49674355]
[1729505613141,5.9796,167.24,167.19,2.39476659]
[1729505613338,5.9796,167.24,167.2,3.89149524]
[1729505613648,5.9799,167.23,167.21,1.49672865]
[1729505613843,34.9469,167.26,167.18,5.9812]
[1729505614048,34.9469,167.26,167.19,3.89165658]
[1729505614261,5.9804,167.22,167.2,1.49679099]
[1729505614553,5.9804,167.22,167.18,2.39490751]
[1729505614723,5.9804,167.22,167.19,1.49681812]
[1729505614921,5.9804,167.22,167.2,1.49681812]
[1729505615152,5.9804,167.22,167.18,2.39491113]
[1729505615355,5.9804,167.22,167.19,1.4968222]
[1729505615645,5.9804,167.22,167.17,2.9936444]
[1729505615646,5.9804,167.22,167.2,1.4968222]
[1729505615857,5.9804,167.22,167.18,2.39491403]
[1729505616063,5.9804,167.22,167.19,1.49682038]
[1729505616250,5.9805,167.21,167.2,1.49682038]
[1729505616452,5.9815,167.18,167.15,18.9919444]
[1729505616660,5.9815,167.18,167.16,3.89222161]
[1729505616843,5.9815,167.18,167.17,1.49700831]
[1729505617242,5.9811,167.2,167.17,1.49700831]
[1729505617466,5.9811,167.2,167.18,1.49700831]
[1729505617635,5.9811,167.2,167.16,2.39520078]
[1729505617840,5.9811,167.2,167.17,1.49700323]
[1729505618052,5.9811,167.2,167.18,1.49700323]
[1729505618266,5.9811,167.2,167.16,2.39520349]
[1729505618468,5.9811,167.2,167.17,1.49700311]
[1729505618766,5.9811,167.2,167.18,1.49700083]
[1729505618940,5.9811,167.2,167.16,2.39520134]
[1729505619267,5.9811,167.2,167.17,3.89220264]
[1729505619444,5.9811,167.2,167.18,1.4970013]
[1729505619645,5.9811,167.2,167.16,2.39520876]
[1729505619846,5.9811,167.2,167.17,3.89221516]
[1729505620048,5.9811,167.2,167.18,1.4970064]
[1729505620241,5.9811,167.2,167.16,2.39520876]
[1729505620562,5.9811,167.2,167.17,3.89221006]
[1729505620744,5.9811,167.2,167.18,1.4970013]
[1729505620944,5.9811,167.2,167.16,2.3951904]
[1729505621174,5.9811,167.2,167.17,3.89218393]
[1729505621350,5.9811,167.2,167.18,1.49699353]
[1729505621678,5.9805,167.21,167.16,5.982]
[1729505621968,5.9805,167.21,167.17,3.89219975]
[1729505622167,5.9805,167.21,167.18,1.4969999]
[1729505622370,5.9805,167.21,167.16,5.982]
[1729505622538,5.9805,167.21,167.17,3.89219884]
[1729505622741,5.9808,167.2,167.18,1.49700002]
[1729505622967,5.9808,167.2,167.15,36.9369]
[1729505623173,5.9808,167.2,167.16,9.87440429]
[1729505623344,5.9808,167.2,167.17,3.89220429]
[1729505623554,5.9808,167.2,167.18,1.49700165]
[1729505623855,5.9808,167.2,167.16,5.9822]
[1729505624162,5.9808,167.2,167.17,3.89220066]
[1729505624367,5.9808,167.2,167.18,1.49700025]
[1729505624572,5.9814,167.19,167.15,30.9543]
[1729505624867,5.9814,167.19,167.16,3.89220642]
[1729505625040,5.9814,167.19,167.17,3.89220642]
[1729505625243,5.9814,167.19,167.18,1.49700247]
[1729505627965,5.9814,167.19,167.16,2.3952783]
[1729505628167,20.0,167.23,167.17,1.49708719]
[1729505628470,5.9811,167.2,167.18,1.49707387]
[1729505628646,5.9811,167.2,167.16,2.39530207]
[1729505628845,5.9812,167.19,167.17,1.49707513]
[1729505629047,5.9812,167.19,167.15,5.9824]
[1729505629365,5.9812,167.19,167.16,3.89238511]
[1729505629581,5.9812,167.19,167.17,1.49707062]
[1729505629764,5.9812,167.19,167.18,1.49707062]
[1729505630148,5.9807,167.21,167.18,1.49707062]
[1729505630354,5.9809,167.2,167.15,8.97663722]
[1729505630649,5.9812,167.19,167.16,3.89225864]
[1729505630962,5.9812,167.19,167.17,3.89225864]
[1729505631165,5.9812,167.19,167.18,1.49702255]
[1729505633758,5.9812,167.19,167.18,1.49701533]
[1729505636778,5.9812,167.19,167.18,3.89222892]
[1729505636975,5.9812,167.19,167.18,3.89222208]
[1729505641372,5.9812,167.19,167.18,3.89223984]
[1729505647688,5.9812,167.19,167.18,3.89225872]
[1729505648483,5.9812,167.19,167.18,6.88629021]
[1729505648868,5.9812,167.19,167.14,20.9396]
[1729505649064,5.9812,167.19,167.15,7.45134609]
[1729505649270,5.9812,167.19,167.16,6.88628101]
[1729505649482,5.9812,167.19,167.17,6.88628101]
[1729505649687,5.9812,167.19,167.18,6.88628101]
[1729505651491,12.20795271,167.22,167.18,15.927]
[1729505651692,12.20795271,167.22,167.19,9.87308954]
[1729505651991,12.20795271,167.22,167.2,6.88519004]
[1729505652191,12.20795271,167.22,167.21,6.88519004]
[1729505652391,5.9791,167.25,167.21,6.88519004]
[1729505652564,5.9794,167.24,167.22,6.88519004]
[1729505652896,5.9794,167.24,167.23,3.89162915]
[1729505653283,5.9794,167.24,167.23,6.88507024]
[1729505653471,5.9785,167.27,167.23,6.88507024]
[1729505653783,5.9785,167.27,167.24,6.88507024]
[1729505653989,5.9785,167.27,167.25,3.89162915]
[1729505654171,5.9785,167.27,167.26,3.89162915]
[1729505655994,5.9777,167.29,167.26,6.88454208]
[1729505656291,0.4309904,167.31,167.27,6.88454208]
[1729505656505,6.4080904,167.31,167.28,6.88454208]
[1729505656797,0.4309904,167.31,167.29,6.88396101]
[1729505657119,0.4309904,167.31,167.3,3.89162915]
[1729505657692,6.4078904,167.31,167.3,3.89162915]
[1729505657875,6.4078904,167.31,167.3,1.49678044]
[1729505661380,0.4309904,167.31,167.3,1.49678044]
[1729505662071,0.4309904,167.31,167.3,3.89041541]
[1729505662269,0.4309904,167.31,167.3,1.49678044]
[1729505663198,6.4078904,167.31,167.3,1.49678044]
[1729505664088,6.4078904,167.31,167.26,2.99214988]
[1729505664268,6.4078904,167.31,167.27,3.88981357]
[1729505664474,6.4078904,167.31,167.28,3.88981357]
[1729505664700,6.4078904,167.31,167.29,1.49608214]
[1729505665001,6.4078904,167.31,167.26,2.99217492]
[1729505665178,6.4078904,167.31,167.27,3.8898274]
[1729505665379,6.4078904,167.31,167.28,1.49608746]
[1729505665578,6.4078904,167.31,167.29,1.49608746]
[1729505665802,6.4078904,167.31,167.26,8.97067492]
[1729505665983,6.4078904,167.31,167.27,3.88983103]
[1729505666186,6.4078904,167.31,167.28,1.49608886]
[1729505666396,6.4078904,167.31,167.29,1.49608886]
[1729505666604,0.4309904,167.31,167.27,2.39371677]
[1729505666898,5.9775,167.3,167.28,1.49609992]
[1729505667108,5.9775,167.3,167.29,1.49609992]
[1729505667399,5.9775,167.3,167.27,2.393744]
[1729505667602,5.9775,167.3,167.24,16.6401]
[1729505667603,0.4309904,167.31,167.28,7.47378976]
[1729505667788,0.4309904,167.31,167.29,1.49608976]
[1729505667987,0.4309904,167.31,167.27,5.9782]
[1729505668188,6.4078904,167.31,167.28,3.88963162]
[1729505668497,6.4078904,167.31,167.29,1.49601216]
[1729505668816,6.4078904,167.31,167.27,2.39366998]
[1729505669102,6.4078904,167.31,167.28,1.49604388]
[1729505669304,6.4078904,167.31,167.27,2.39367652]
[1729505669619,6.4078904,167.31,167.28,1.4960484]
[1729505669808,6.4078904,167.31,167.27,2.39369482]
[1729505670106,6.4078904,167.31,167.28,1.49605993]
[1729505670277,6.4078904,167.31,167.26,20.9252]
[1729505670473,6.4078904,167.31,167.27,3.88976229]
[1729505670678,6.4078904,167.31,167.28,1.49606242]
[1729505670897,6.4078904,167.31,167.26,20.9252]
[1729505671103,6.4078904,167.31,167.27,1.49606239]
[1729505671297,6.4078904,167.31,167.28,1.49606239]
[1729505671504,6.4078904,167.31,167.26,20.9252]
[1729505671700,6.4078904,167.31,167.27,1.49606332]
[1729505671904,6.4078904,167.31,167.26,20.9252]
[1729505671905,6.4078904,167.31,167.28,1.49606332]
[1729505672120,6.4078904,167.31,167.26,20.9252]
[1729505672305,6.4078904,167.31,167.27,1.49606332]
[1729505672480,6.4078904,167.31,167.28,1.49606332]
[1729505672679,6.4078904,167.31,167.27,2.39363949]
[1729505672880,6.4078904,167.31,167.28,1.49601879]
[1729505673075,6.4078904,167.31,167.27,2.39363949]
[1729505673312,6.4078904,167.31,167.28,1.49601925]
[1729505673477,6.4078904,167.31,167.26,20.9252]
[1729505673683,6.4078904,167.31,167.27,1.49601879]
[1729505673881,6.4078904,167.31,167.28,1.49601879]
[1729505674091,6.4078904,167.31,167.26,20.9252]
[1729505674293,6.4078904,167.31,167.27,3.88965648]
[1729505674506,6.4078904,167.31,167.28,3.88965648]
[1729505674698,6.4078904,167.31,167.26,20.9252]
[1729505674899,6.4078904,167.31,167.27,3.88907072]
[1729505675113,6.4078904,167.31,167.28,3.88907072]
[1729505675412,6.4078904,167.31,167.29,1.49579643]
[1729505675579,6.4078904,167.31,167.3,1.49579643]
[1729505675988,0.4309904,167.31,167.3,1.49579643]
[1729505678118,0.4309904,167.31,167.3,1.49568938]
[1729505681831,0.4309904,167.31,167.3,1.49570003]
[1729505686099,0.4309904,167.31,167.29,5.9775]
[1729505686299,0.4309904,167.31,167.3,1.49566629]
[1729505689624,0.4309904,167.31,167.29,5.9775]
[1729505689794,0.4309904,167.31,167.3,1.49566629]
[1729505690631,0.4309904,167.31,167.29,5.43480749]
[1729505700511,0.4309904,167.31,167.3,45.196784]
[1729505700716,0.4309904,167.31,167.3,50.58075188]
[1729505701511,0.4309904,167.31,167.3,56.49307503]
[1729505702430,15.9646,167.44,167.33,23.776884]
[1729505702431,5.9726,167.43,167.33,23.776884]
[1729505702632,5.9726,167.43,167.35,23.776884]
[1729505702815,5.9726,167.43,167.36,3.88828973]
[1729505703016,5.9731,167.42,167.37,1.49520509]
[1729505703209,5.9731,167.42,167.38,1.49520509]
[1729505703210,5.9732,167.42,167.38,1.49520509]
[1729505703415,5.9732,167.42,167.36,2.39308464]
[1729505703631,5.9732,167.42,167.37,1.49501239]
[1729505703939,5.9732,167.42,167.38,1.49499244]
[1729505704108,5.9734,167.41,167.36,8.36708791]
[1729505704306,5.9734,167.41,167.37,1.4949941]
[1729505704509,14.9298,167.45,167.36,8.36708791]
[1729505704510,14.9298,167.45,167.38,1.4949941]
[1729505704729,5.973,167.42,167.37,5.9747]
[1729505704926,5.9732,167.42,167.38,1.49498023]
[1729505705130,5.9732,167.42,167.36,8.36698791]
[1729505705314,5.9744,167.38,167.37,1.49499153]
[1729505705635,5.9744,167.38,167.32,13.00987713]
[1729505705636,5.9744,167.38,167.33,2.39198791]
[1729505705835,5.9755,167.35,167.34,10.12516913]
[1729505706512,5.9755,167.35,167.34,1.49516913]
[1729505707323,5.9755,167.35,167.32,1.49516913]
[1729505707639,5.9755,167.35,167.33,1.49516913]
[1729505707946,5.9755,167.35,167.34,1.49516913]
[1729505708235,43.876884,167.39,167.29,2.39198791]
[1729505708424,43.876884,167.39,167.3,3.88749392]
[1729505708617,5.9768,167.32,167.31,3.88749392]
[1729505708922,5.9768,167.32,167.31,1.49550601]
[1729505709321,5.9751,167.36,167.31,3.88749392]
[1729505709666,5.9762,167.33,167.32,1.49550601]
[1729505710338,5.9762,167.33,167.32,3.88835003]
[1729505710833,5.9762,167.33,167.32,1.49550601]
[1729505711536,5.9762,167.33,167.32,3.88840813]
[1729505711741,5.9762,167.33,167.32,1.49550601]
[1729505712322,5.9762,167.33,167.32,3.8884846]
[1729505713039,5.9762,167.33,167.32,1.49550601]
[1729505713423,5.9762,167.33,167.32,3.88859087]
[1729505715630,25.9762,167.33,167.32,3.88859087]
[1729505715830,0.1,167.35,167.25,5.91697041]
[1729505715831,43.876884,167.31,167.25,0.55767713]
[1729505716029,43.876884,167.31,167.21,5.91697041]
[1729505716030,0.1,167.3,167.26,2.99197107]
[1729505716248,5.9792,167.25,167.24,2.99203725]
[1729505716630,5.9789,167.26,167.24,2.99203725]
[1729505716841,5.9789,167.26,167.25,2.99203725]
[1729505718459,5.9789,167.26,167.25,2.99208858]
[1729505718748,5.979,167.25,167.22,0.55674254]
[1729505718952,5.979,167.25,167.23,2.9920923]
[1729505719150,5.979,167.25,167.24,2.9920923]
[1729505722376,5.9797,167.24,167.22,2.9920923]
[1729505722571,5.9797,167.24,167.23,2.9920923]
[1729505725246,5.9798,167.23,167.21,2.9920923]
[1729505725448,5.9798,167.23,167.22,2.99252239]
[1729505725875,5.9798,167.23,167.22,5.94311166]
[1729505726278,5.9798,167.23,167.22,5.3864869]
[1729505726449,5.9798,167.23,167.22,5.94311166]
[1729505727760,5.9798,167.23,167.22,7.43931192]
[1729505728475,5.9798,167.23,167.22,6.88268716]
[1729505728654,5.9798,167.23,167.22,7.43931192]
[1729505729155,5.9798,167.23,167.22,7.43110899]
[1729505729362,5.9798,167.23,167.22,6.88276481]
[1729505732781,5.9801,167.22,167.17,20.9358]
[1729505732966,5.9801,167.22,167.21,0.54812455]
[1729505733155,5.9801,167.22,167.21,6.88277863]
[1729505736274,5.9801,167.22,167.17,20.9359]
[1729505736455,5.9801,167.22,167.2,0.54785935]
[1729505736648,5.9801,167.22,167.21,6.88277949]
[1729505737367,5.9801,167.22,167.21,3.89026667]
[1729505737573,5.9801,167.22,167.21,6.88277949]
[1729505737869,25.9801,167.22,167.21,3.89026667]
[1729505739072,5.9801,167.22,167.21,3.89026667]
[1729505740060,25.9801,167.22,167.21,3.89079715]
[1729505740249,25.9801,167.22,167.21,1.49646044]
[1729505740452,5.9815,167.19,167.16,2.99292089]
[1729505740671,5.9816,167.18,167.17,3.89120126]
[1729505743791,5.9816,167.18,167.17,3.89132045]
[1729505744163,25.9816,167.18,167.17,1.49666171]
[1729505744470,5.9826,167.15,167.14,2.39465874]
[1729505744664,5.9826,167.15,167.14,1.49696078]
[1729505746382,20.0,167.18,167.11,2.39465874]
[1729505746383,5.9831,167.14,167.11,2.39465874]
[1729505746587,5.9833,167.13,167.08,11.37298217]
[1729505746882,5.9833,167.13,167.09,1.49745548]
[1729505747063,5.9833,167.13,167.1,1.49745548]
[1729505747260,5.9833,167.13,167.07,44.0498]
[1729505747474,5.9829,167.15,167.08,8.38097843]
[1729505747682,15.2682,167.21,167.1,14.961]
[1729505747886,5.9819,167.17,167.11,9.87716907]
[1729505748080,5.9819,167.17,167.12,7.48109064]
[1729505748277,5.9819,167.17,167.13,1.49749064]
[1729505748579,5.9819,167.17,167.14,1.49713268]
[1729505748765,5.9819,167.17,167.12,8.37957843]
[1729505748968,5.9819,167.17,167.13,1.4970955]
[1729505749174,5.9819,167.17,167.14,1.4970955]
[1729505749376,5.9819,167.17,167.12,8.37957843]
[1729505749567,5.9819,167.17,167.13,1.49709369]
[1729505749768,5.9819,167.17,167.14,1.49709369]
[1729505749981,5.9819,167.17,167.12,8.37957843]
[1729505750169,5.9819,167.17,167.13,1.49709457]
[1729505750365,5.9819,167.17,167.14,1.49709457]
[1729505750569,5.9819,167.17,167.12,8.37957843]
[1729505750778,14.9502,167.23,167.14,22.5877]
[1729505750988,5.9814,167.19,167.15,1.49704222]
[1729505751299,0.1,167.21,167.15,1.49704222]
[1729505751594,5.9827,167.15,167.11,5.38956567]
[1729505751770,14.953,167.19,167.12,1.49712627]
[1729505752091,5.983,167.14,167.13,1.49712627]
[1729505752393,5.9843,167.11,167.08,5.39030531]
[1729505752571,5.9843,167.11,167.09,1.49738648]
[1729505752779,5.9843,167.11,167.1,1.49738648]
[1729505754269,20.0,167.13,167.06,2.39569125]
[1729505754470,20.0,167.13,167.05,21.9619]
[1729505754471,20.1,167.13,167.07,3.89325916]
[1729505754672,5.9851,167.08,167.06,2.39569125]
[1729505754876,5.9851,167.08,167.07,1.49764759]
[1729505756992,15.0611,167.1,167.03,2.39569125]
[1729505757202,15.0611,167.1,167.04,1.49786257]
[1729505757388,14.9611,167.1,167.05,1.49786257]
[1729505757574,5.9858,167.07,167.06,1.49786257]
[1729505760573,5.9848,167.09,167.06,1.49786257]
[1729505760782,5.9848,167.09,167.07,1.49786257]
[1729505760985,5.9848,167.09,167.08,1.49786257]
[1729505761390,5.9848,167.09,167.04,5.9865]
[1729505761598,5.9848,167.09,167.05,3.8938261]
[1729505761899,5.9848,167.09,167.06,3.8938261]
[1729505762103,5.9848,167.09,167.07,1.49762542]
[1729505762273,5.9848,167.09,167.08,1.49762542]
[1729505763082,5.9844,167.1,167.08,1.49762542]
[1729505763281,5.9844,167.1,167.06,2.39620068]
[1729505763483,5.9844,167.1,167.07,1.49760732]
[1729505763799,18.20087199,167.11,167.08,1.49760732]
[1729505763995,18.20087199,167.11,167.06,5.9858]
[1729505764202,18.20087199,167.11,167.07,1.49760713]
[1729505764395,18.20087199,167.11,167.06,5.9858]
[1729505764576,18.20087199,167.11,167.04,14.9656]
[1729505764577,12.21677199,167.11,167.07,1.49760485]
[1729505764788,5.9845,167.1,167.08,1.49760485]
[1729505765103,5.9845,167.1,167.09,1.49760485]
[1729505765803,5.9837,167.12,167.09,1.49760485]
[1729505765980,5.9837,167.12,167.07,8.38156777]
[1729505765981,5.9837,167.12,167.1,1.49757533]
[1729505766178,12.21532351,167.13,167.11,1.49737788]
[1729505766489,12.21532351,167.13,167.12,1.49737788]
[1729505768884,5.9827,167.15,167.12,1.49737788]
[1729505769079,5.9827,167.15,167.11,8.38016777]
[1729505769080,5.9821,167.17,167.13,1.49737788]
[1729505769281,21.35915287,167.22,167.14,1.49737788]
[1729505769282,5.9815,167.18,167.14,1.49737788]
[1729505769508,5.9815,167.18,167.13,5.9833]
[1729505769509,5.9815,167.18,167.15,1.49737788]
[1729505769805,5.9815,167.18,167.13,5.9833]
[1729505770009,5.9815,167.18,167.14,1.497065]
[1729505770213,5.9815,167.18,167.15,1.497065]
[1729505770407,5.982,167.17,167.13,2.39616777]
[1729505770702,5.982,167.17,167.14,1.49702906]
[1729505770885,5.982,167.17,167.15,1.49702906]
[1729505771080,5.982,167.17,167.12,2.39616777]
[1729505771312,12.2103542,167.2,167.13,1.49704179]
[1729505771515,5.9817,167.18,167.14,1.49704197]
[1729505771804,12.2103542,167.2,167.13,5.9832]
[1729505771993,5.9812,167.19,167.14,23.82222973]
[1729505772306,5.9812,167.19,167.15,1.49702973]
[1729505772487,5.9812,167.19,167.14,22.3252]
[1729505772691,5.9812,167.19,167.15,3.89210504]
[1729505772994,12.2103542,167.2,167.17,5.9818]
[1729505773402,12.2103542,167.2,167.16,20.9376]
[1729505773618,12.2103542,167.2,167.17,1.49682184]
[1729505773913,12.2103542,167.2,167.16,20.9376]
[1729505774106,12.2103542,167.2,167.17,1.49680739]
[1729505774282,12.2103542,167.2,167.18,1.49680739]
[1729505774606,12.2103542,167.2,167.15,6.5917]
[1729505774902,12.2103542,167.2,167.16,1.49682035]
[1729505775106,12.2103542,167.2,167.17,7.47842035]
[1729505775297,12.2103542,167.2,167.18,1.49682035]
[1729505775478,12.2103542,167.2,167.17,5.9816]
[1729505775807,12.2103542,167.2,167.18,1.49679294]
[1729505775989,12.2103542,167.2,167.17,5.9816]
[1729505776189,12.2103542,167.2,167.18,1.49678651]
[1729505776485,12.2103542,167.2,167.16,14.9552]
[1729505776687,18.1911542,167.2,167.17,1.49678729]
[1729505777001,18.1911542,167.2,167.16,17.35005967]
[1729505777188,18.1911542,167.2,167.17,1.49681269]
[1729505777389,18.1911542,167.2,167.16,17.35005967]
[1729505777582,18.1911542,167.2,167.17,1.49681766]
[1729505777805,18.1911542,167.2,167.16,2.39485967]
[1729505778105,18.1911542,167.2,167.17,1.49683095]
[1729505778279,18.1911542,167.2,167.15,8.98655967]
[1729505778485,18.1911542,167.2,167.16,1.49683142]
[1729505778703,5.9815,167.18,167.17,1.49683142]
[1729505778903,5.9815,167.18,167.15,2.39485967]
[1729505779209,5.9815,167.18,167.16,1.49690203]
[1729505779402,5.9812,167.19,167.14,24.72005967]
[1729505779730,5.9812,167.19,167.15,3.89176061]
[1729505779898,12.2103542,167.2,167.16,1.49690094]
[1729505780206,12.2103542,167.2,167.18,5.9814]
[1729505780393,12.2103542,167.2,167.19,1.49690094]
[1729505782200,5.98,167.23,167.19,1.49690094]
[1729505782404,5.98,167.23,167.2,1.49662099]
[1729505782612,5.98,167.23,167.18,8.37599358]
[1729505782811,5.98,167.23,167.19,1.49662052]
[1729505783021,5.98,167.23,167.2,1.49662052]
[1729505783200,5.98,167.23,167.18,8.37599358]
[1729505783400,5.98,167.23,167.19,1.49661966]
[1729505783600,5.98,167.23,167.18,8.37599358]
[1729505783912,5.98,167.23,167.19,1.49666755]
[1729505784126,5.9794,167.24,167.19,5.9811]
[1729505784300,14.9451,167.28,167.2,7.47741504]
[1729505784500,5.979,167.25,167.2,5.9808]
[1729505785697,28.76678837,167.3,167.18,8.76777305]
[1729505785906,28.76678837,167.3,167.21,16.6468]
[1729505785907,5.9779,167.29,167.21,16.6468]
[1729505786106,14.9418,167.32,167.23,14.9494]
[1729505786422,5.9771,167.31,167.25,5.9787]
[1729505786602,5.9774,167.3,167.25,20.9263]
[1729505787319,5.9766,167.32,167.26,14.9465]
[1729505787504,5.9758,167.34,167.26,5.9787]
[1729505787711,5.9758,167.34,167.28,21.6213]
[1729505788606,5.9758,167.34,167.29,1.49581659]
[1729505788801,22.1068,167.38,167.3,14.9429]
[1729505789010,5.9762,167.33,167.28,15.6433]
[1729505789202,22.1068,167.38,167.29,1.49580617]
[1729505789400,5.9773,167.3,167.28,15.6433]
[1729505789820,22.3068,167.38,167.24,28.4369]
[1729505790014,20.0,167.35,167.25,1.49606752]
[1729505790214,20.0,167.35,167.26,1.49606752]
[1729505790402,20.2,167.37,167.24,22.4575]
[1729505790604,20.0,167.33,167.25,1.49608428]
[1729505790908,5.9792,167.25,167.21,2.39385541]
[1729505791105,5.9792,167.25,167.22,1.49628712]
[1729505791307,14.9432,167.3,167.23,1.49628712]
[1729505791624,5.9787,167.26,167.21,8.37425541]
[1729505791919,5.9776,167.29,167.22,1.49630388]
[1729505792122,20.0,167.31,167.23,16.44560388]
[1729505792308,5.9784,167.27,167.23,14.9493]
[1729505792629,5.9784,167.27,167.21,29.757284]
[1729505792921,5.9784,167.27,167.22,3.89034205]
[1729505793125,5.9784,167.27,167.23,1.4962854]
[1729505793314,5.979,167.26,167.22,2.39405665]
[1729505793513,14.9432,167.3,167.23,1.49629905]
[1729505793724,5.9797,167.24,167.22,2.39405665]
[1729505793931,56.3003,167.31,167.2,16.0177]
[1729505794129,5.98,167.23,167.21,1.49641657]
[1729505794306,5.98,167.23,167.22,1.49641657]
[1729505794622,5.98,167.23,167.21,1.49641657]
[1729505794826,5.98,167.23,167.2,16.0177]
[1729505795029,5.98,167.23,167.21,1.49644411]
[1729505795231,5.98,167.23,167.2,16.0177]
[1729505795526,5.98,167.23,167.21,1.49644183]
[1729505795725,5.98,167.23,167.2,16.0177]
[1729505796033,5.9801,167.22,167.21,1.49644411]
[1729505796329,5.9808,167.2,167.17,2.39426652]
[1729505796528,20.0,167.26,167.18,1.49664493]
[1729505796825,5.981,167.2,167.19,1.49664493]
[1729505797007,5.9808,167.2,167.19,1.49664493]
[1729505797216,5.9811,167.2,167.16,15.926]
[1729505797538,5.9811,167.2,167.17,1.49672212]
[1729505797823,5.9811,167.2,167.18,1.49672212]
[1729505798027,5.9811,167.2,167.16,18.32026652]
[1729505798230,5.9811,167.2,167.17,1.49672522]
[1729505798418,5.9811,167.2,167.18,1.49672522]
[1729505798732,5.9811,167.2,167.16,15.926]
[1729505798917,5.9801,167.22,167.17,1.49672434]
[1729505799110,5.9815,167.19,167.16,15.926]
[1729505799316,5.9815,167.19,167.17,1.49679196]
[1729505799529,5.9815,167.19,167.16,15.926]
[1729505799747,14.9494,167.23,167.17,1.49679198]
[1729505799935,5.9815,167.18,167.15,2.39426652]
[1729505800229,5.9815,167.18,167.16,1.49684169]
[1729505800432,5.9815,167.18,167.17,1.49684169]
[1729505800824,5.9815,167.18,167.15,1.49684169]
[1729505801132,5.9815,167.18,167.16,1.49684169]
[1729505801311,5.9815,167.18,167.14,2.39426652]
[1729505801312,5.9815,167.18,167.17,1.49684169]